[Event "Turkey IS Bank Super League 2017"]
[Site "Darica-Kocaeli"]
[Date "2017.08.05"]
[Round "12"]
[White "Duran, Esma Doga"]
[Black "Avramidou, Anastasia"]
[Result "1/2-1/2"]
[ECO "E13"]
[WhiteElo "1939"]
[BlackElo "2247"]
[Annotator "NA"]
[PlyCount "135"]
[EventType "team-tourn"]
[EventCountry "TUR"]
[SourceTitle "playchess.com"]
[Source "ChessBase"]
[SourceQuality "1"]
[TimeControl "40/5400+30:1800+30"]

1. d4 {[%emt 0:00:30]} Nf6 {[%emt 0:01:00]} 2. c4 {[%emt 0:00:30]} e6 {[%emt 0:00:30]} 3. Nf3 {[%emt 0:00:30]} b6 {[%emt 0:00:30]} 4. Nc3 {[%emt 0:00:30]} Bb4 {[%emt 0:00:00]} 5. Bg5 {[%emt 0:00:00]} Bb7 {[%emt 0:02:00]} 6. e3 {[%emt 0:00:00]} h6 {[%emt 0:00:30]} 7. Bh4 {[%emt 0:00:00]} g5 {[%emt 0:04:30]} 8. Bg3 {[%emt 0:00:00]} Ne4 {[%emt 0:00:30]} 9. Qc2 {[%emt 0:00:00]} Bxc3+ {[%emt 0:00:30]} 10. bxc3 {[%emt 0:00:00]} Nxg3 {[%emt 0:00:30]} 11. hxg3 {[%emt 0:00:30]} Bxf3 {[%emt 0:01:30] E13: Queen's Indian/Nimzo-Indian hybrid: 4 Nc3 Bb7 5 Bg5 h6 6 Bh4 Bb4} (11... h5 12. a4 Nc6 13. Nd2 g4 14. Nb3 Qg5 15. a5 Nxa5 16. Nxa5 bxa5 17. e4 f5 18. Bd3 fxe4 19. Bxe4 Bxe4 20. Qxe4 {½-½ (74) Moiseenko,A (2701)-Kryvoruchko,Y (2706) Lvov 2014}) 12. gxf3 {[%emt 0:00:30]} Nc6 $146 {[%emt 0:00:00]} ({Predecessor:} 12... d5 13. e4 dxc4 14. Bxc4 c5 15. Bb5+ Nd7 16. Rd1 a6 17. Bc6 Ra7 18. d5 e5 19. Qd2 {½-½ (49) Dutra,L (1586)-Guedes Germando,J Sao Paulo 2016}) 13. Bd3 {[%emt 0:01:30]} Qe7 {[%emt 0:04:00]} 14. Kf1 {[%emt 0:12:30]} Na5 {[%emt 0:06:30]} (14... h5 $14) 15. Kg2 {[%emt 0:14:30]} (15. Rh5 $16) 15... c5 {[%emt 0:06:30]} (15... h5 $11) 16. Qe2 {[%emt 0:14:30]} (16. Be2 $16) 16... e5 {[%emt 0:17:30]} (16... h5 $14) 17. Be4 {[%emt 0:07:30] [%clk 0:45]} Rc8 {[%emt 0:05:30] [#]} 18. Rac1 {[%emt 0:01:30]} (18. dxe5 $1 $18 Qxe5 19. Qd3) 18... d6 {[%emt 0:19:30]} 19. Qd1 {[%emt 0:23:30]} ({White should play} 19. dxe5 $18 dxe5 20. Rh5) 19... Kf8 {[%emt 0:02:30]} 20. Qa4 {[%emt 0:02:47]} Kg7 {[%emt 0:00:30]} 21. g4 {[%emt 0:00:31]} Qe8 {[%emt 0:07:27]} 22. Qxe8 {[%emt 0:05:02]} Rhxe8 {[%emt 0:00:10]} 23. dxe5 {[%emt 0:02:12]} Nxc4 {[%emt 0:05:09]} 24. exd6 {[%emt 0:00:30]} Nxd6 {[%emt 0:00:30]} 25. Bd5 {[%emt 0:00:17]} c4 {[%emt 0:00:42]} 26. Kg3 {[%emt 0:05:00]} Rc5 {[%emt 0:02:04]} 27. Rhd1 {[%emt 0:00:01]} Kf6 {[%emt 0:07:14]} 28. f4 {[%emt 0:01:10]} gxf4+ {[%emt 0:01:58]} 29. Kxf4 {[%emt 0:00:03]} Nb5 {[%emt 0:00:01]} 30. Bg2 {[%emt 0:03:27]} Nc7 {[%emt 0:02:10]} 31. Rd6+ {[%emt 0:00:49]} Ne6+ {[%emt 0:00:05]} 32. Kg3 {[%emt 0:00:11]} h5 {[%emt 0:00:52]} 33. f4 {[%emt 0:01:56]} hxg4 {[%emt 0:02:01]} 34. Kxg4 {[%emt 0:00:30]} Rg8+ {[%emt 0:00:30]} 35. Kf3 {[%emt 0:00:30]} Ra5 {[%emt 0:00:30]} 36. Rc2 {[%emt 0:00:30]} Ke7 {[%emt 0:00:30]} 37. Rcd2 {[%emt 0:01:05]} Rd8 {[%emt 0:01:51]} 38. Rxd8 {[%emt 0:00:30]} Nxd8 {[%emt 0:00:00]} 39. Bh3 {[%emt 0:02:02]} Ra3 {[%emt 0:00:19]} 40. Rd7+ {[%emt 0:00:30]} Ke8 {[%emt 0:00:57]} 41. Rc7 {[%emt 0:03:27]} Rxc3 {[%emt 0:00:30]} 42. Rxa7 {[%emt 0:00:30]} Kf8 {[%emt 0:15:14]} 43. Ra8 {[%emt 0:03:30]} Ke7 {[%emt 0:01:00]} 44. Ra7+ {[%emt 0:00:00]} Kf8 {[%emt 0:00:20]} 45. Ra8 {[%emt 0:00:00]} Ke8 {[%emt 0:01:38]} 46. Rb8 {[%emt 0:09:26]} Rc1 {[%emt 0:01:14]} 47. Bf5 {[%emt 0:09:33]} ({Much worse is} 47. Rxb6 c3 $17) 47... c3 {[%emt 0:06:12]} 48. Ke2 {[%emt 0:01:46]} Ra1 {[%emt 0:00:04]} 49. Rxb6 {[%emt 0:01:19]} Rxa2+ {[%emt 0:00:03]} 50. Kd1 {[%emt 0:00:40]} Rd2+ {[%emt 0:01:15]} 51. Ke1 {[%emt 0:02:36]} Rg2 {[%emt 0:00:05]} 52. Rb3 {[%emt 0:01:57]} Rg1+ {[%emt 0:03:51]} 53. Ke2 {[%emt 0:00:30]} Rc1 {[%emt 0:00:03]} 54. Kd3 {[%emt 0:00:18]} Nc6 {[%emt 0:01:25]} 55. Rxc3 {[%emt 0:00:32]} Rd1+ {[%emt 0:00:44]} 56. Ke4 {[%emt 0:01:15]} Ne7 {[%emt 0:01:07]} 57. Bg4 {[%emt 0:00:30]} Rd6 {[%emt 0:01:15]} 58. f5 {[%emt 0:01:01]} Nd5 {[%emt 0:01:39]} 59. Rc8+ {[%emt 0:00:36]} Ke7 {[%emt 0:00:11]} 60. Rc5 {[%emt 0:00:39]} Nf6+ {[%emt 0:00:57]} 61. Kf4 {[%emt 0:00:12]} Nd5+ $14 {[%emt 0:01:34]} 62. Ke4 {[%emt 0:00:01]} Nf6+ {[%emt 0:00:07]} 63. Kf4 {[%emt 0:00:09]} Nd5+ {[%emt 0:00:06]} 64. Ke4 {[%emt 0:00:44]} Nf6+ {[%emt 0:00:05]} 65. Kf4 {[%emt 0:01:43]} Nd5+ {[%emt 0:00:06]} 66. Ke4 {[%emt 0:00:28]} Nf6+ {[%emt 0:00:06]} 67. Kf4 {[%emt 0:00:30]} Nd5+ {[%emt 0:00:06]} 68. Ke4 {[%emt 0:00:39]} 1/2-1/2

[Event "Turkey IS Bank Super League 2017"]
[Site "Darica-Kocaeli"]
[Date "2017.08.05"]
[Round "12"]
[White "Yassibag, Ipek Asli"]
[Black "Ayazmali, Gizem"]
[Result "1-0"]
[ECO "C46"]
[WhiteElo "1880"]
[BlackElo "1849"]
[Annotator "NA"]
[PlyCount "75"]
[EventType "team-tourn"]
[EventCountry "TUR"]
[SourceTitle "playchess.com"]
[Source "ChessBase"]
[SourceQuality "1"]
[TimeControl "40/5400+30:1800+30"]

1. e4 {[%emt 0:00:30]} e5 {[%emt 0:01:00]} 2. Nf3 {[%emt 0:00:30]} Nc6 {[%emt 0:00:30]} 3. Bc4 {[%emt 0:00:30]} g6 {[%emt 0:00:00]} 4. d3 {[%emt 0:01:30]} Bg7 {[%emt 0:01:00]} 5. Nc3 {[%emt 0:00:30]} h6 {[%emt 0:07:30]} 6. Be3 {[%emt 0:02:30] C46: 3 Nc3: Unusual Black 3rd moves} (6. a3 Nge7 7. O-O d6 8. h3 O-O 9. Nh2 Kh7 10. Ba2 f5 11. Nd5 Nxd5 12. Bxd5 Ne7 13. Bb3 c6 {0-1 (28) Salih,A (2284)-Cornette,M (2566) Doha 2014}) 6... Na5 {[%emt 0:02:30]} 7. Bb3 {[%emt 0:01:30]} Nxb3 {[%emt 0:04:30]} 8. axb3 {[%emt 0:00:00]} a6 $146 {[%emt 0:06:30]} ({Predecessor:} 8... d6 9. Qd2 c5 10. b4 cxb4 11. Nd5 Be6 12. Bb6 axb6 13. Rxa8 Qxa8 {1-0 (22) Kloke,S (2112)-Wiechen,U (2171) Germany 2006}) 9. d4 {[%emt 0:04:00]} Ne7 {[%emt 0:28:30]} (9... f6 $14) 10. Nxe5 {[%emt 0:06:30]} (10. dxe5 $18 Nc6 11. O-O) 10... d6 {[%emt 0:06:30]} 11. Nf3 {[%emt 0:02:30]} d5 {[%emt 0:07:30]} 12. Nxd5 {[%emt 0:06:30]} Nxd5 {[%emt 0:00:30]} 13. exd5 {[%emt 0:00:30]} Qxd5 {[%emt 0:00:00]} 14. c4 {[%emt 0:01:30]} Qd6 {[%emt 0:02:00]} 15. O-O {[%emt 0:01:30]} O-O {[%emt 0:00:30] [%clk 0:27]} 16. Qd2 {[%emt 0:01:30]} g5 {[%emt 0:05:30]} 17. d5 {[%emt 0:06:30]} c5 {[%emt 0:14:19]} 18. b4 {[%emt 0:13:30]} cxb4 {[%emt 0:04:24]} 19. Ra5 {[%emt 0:06:30]} Rd8 {[%emt 0:01:32]} 20. Bc5 {[%emt 0:01:30]} Qg6 {[%emt 0:02:09]} 21. Bxb4 $16 {[%emt 0:02:30]} Bg4 {[%emt 0:00:39]} 22. Nd4 {[%emt 0:02:30]} Rac8 {[%emt 0:00:51]} 23. b3 {[%emt 0:00:30]} Bf5 {[%emt 0:01:38]} 24. Nxf5 {[%emt 0:03:30]} Qxf5 {[%emt 0:00:02]} 25. d6 {[%emt 0:02:30]} Qd7 {[%emt 0:00:13]} 26. c5 {[%emt 0:04:30]} Re8 {[%emt 0:01:05]} 27. Ra2 {[%emt 0:02:30]} Re4 {[%emt 0:00:46]} 28. Ba3 {[%emt 0:18:21]} Rd4 {[%emt 0:00:52]} 29. Qa5 {[%emt 0:02:36]} Rd3 {[%emt 0:00:51]} 30. Re2 {[%emt 0:02:58]} Bf6 {[%emt 0:00:49]} 31. Qb4 {[%emt 0:00:30]} Rd4 {[%emt 0:00:30]} 32. Qb6 {[%emt 0:02:00]} Rc6 {[%emt 0:00:31]} 33. Qa7 {[%emt 0:00:22]} Rd3 {[%emt 0:01:08]} 34. Bb2 {[%emt 0:00:37]} Bd8 {[%emt 0:00:19]} 35. b4 {[%emt 0:00:31]} a5 {[%emt 0:00:39]} 36. b5 {[%emt 0:00:30]} Rc8 {[%emt 0:00:30]} 37. c6 {[%emt 0:00:21]} Qxd6 {[%emt 0:00:00]} 38. cxb7 {[%emt 0:00:15]} 1-0

[Event "Turkey IS Bank Super League 2017"]
[Site "Darica-Kocaeli"]
[Date "2017.08.05"]
[Round "12"]
[White "Ayan, Bengu Sena"]
[Black "Kargaci, Humeyra"]
[Result "0-1"]
[ECO "D70"]
[WhiteElo "1862"]
[BlackElo "1737"]
[Annotator "NA"]
[PlyCount "104"]
[EventType "team-tourn"]
[EventCountry "TUR"]
[SourceTitle "playchess.com"]
[Source "ChessBase"]
[SourceQuality "1"]
[TimeControl "40/5400+30:1800+30"]

1. d4 {[%emt 0:00:30]} Nf6 {[%emt 0:01:00]} 2. c4 {[%emt 0:00:30]} g6 {[%emt 0:00:30]} 3. f3 {[%emt 0:00:30]} d5 {[%emt 0:07:30]} 4. cxd5 {[%emt 0:00:00]} Nxd5 {[%emt 0:00:30]} 5. e4 {[%emt 0:00:00]} Nb6 {[%emt 0:00:30]} 6. Nc3 {[%emt 0:00:30]} Bg7 {[%emt 0:00:30]} 7. Be3 {[%emt 0:00:30]} c6 {[%emt 0:03:30] D70: Grünfeld: Unusual White 3rd moves (met by ...d5)} (7... O-O 8. Qd2 Nc6 9. O-O-O Qd6 10. Kb1 Rd8 11. Nb5 Qd7 12. d5 a6 13. Nc3 Qe8 14. Qc1 Na5 15. h4 e6 16. Bf4 Rd7 17. Bh6 Bxh6 18. Qxh6 exd5 {½-½ (35) Aronian,L (2809)-Svidler,P (2749) Geneve 2017}) 8. Qd2 {[%emt 0:02:30]} Be6 {[%emt 0:01:30]} 9. b3 {[%emt 0:14:30]} N8d7 $146 {[%emt 0:17:30]} ({Predecessor:} 9... a5 10. Rd1 a4 11. d5 cxd5 12. exd5 Bd7 13. Ne4 axb3 14. axb3 Bf5 15. Ng3 {0-1 (36) Severino,S (2349)-Liu,X (2423) Olongapo City 2015}) 10. Nge2 {[%emt 0:05:30]} h5 {[%emt 0:07:30]} 11. Nf4 {[%emt 0:10:30]} Nf8 {[%emt 0:00:30]} 12. Rc1 {[%emt 0:01:30]} Qd6 {[%emt 0:05:30] [%clk 0:47]} 13. d5 {[%emt 0:16:30]} Bd7 {[%emt 0:04:30]} 14. Bc4 {[%emt 0:03:30]} Nxc4 {[%emt 0:10:30]} 15. bxc4 {[%emt 0:00:00]} c5 {[%emt 0:00:30]} 16. Nd3 {[%emt 0:05:00]} Rc8 {[%emt 0:05:30]} 17. O-O {[%emt 0:08:30]} Nh7 {[%emt 0:04:30] [#]} (17... b6 {keeps fighting.} 18. Bf4 Bd4+ 19. Kh1 e5) 18. e5 $1 {[%emt 0:06:30]} Bxe5 {[%emt 0:03:30]} 19. Nxe5 {[%emt 0:01:30]} Qxe5 {[%emt 0:00:30]} 20. Rfe1 {[%emt 0:01:30]} Qf5 {[%emt 0:01:30] [#]} 21. Bxc5 $1 {[%emt 0:01:07]} O-O {[%emt 0:03:53]} 22. Bxe7 {[%emt 0:00:30]} Rfe8 {[%emt 0:00:13]} 23. c5 {[%emt 0:02:16]} Nf6 {[%emt 0:05:13]} 24. Ne4 $2 {[%emt 0:06:29]} ({Better is} 24. Qd4 $18 Rxe7 25. Rxe7) 24... Rxe7 {[%emt 0:04:00]} 25. Nd6 {[%emt 0:00:34]} Qxd5 {[%emt 0:00:15]} 26. Qxd5 {[%emt 0:00:39]} Nxd5 {[%emt 0:00:16]} 27. Nxc8 {[%emt 0:01:08]} Bxc8 {[%emt 0:00:02]} 28. Rxe7 {[%emt 0:00:51]} Nxe7 {[%emt 0:00:03]} 29. Rd1 {[%emt 0:00:08]} Nc6 {[%emt 0:00:25]} 30. a3 {[%emt 0:00:46]} Kf8 {[%emt 0:01:40]} 31. Kf2 {[%emt 0:01:15]} Ke7 {[%emt 0:00:28]} 32. Ke3 {[%emt 0:00:21]} Bd7 {[%emt 0:01:58]} 33. Rb1 {[%emt 0:00:19]} Nd8 {[%emt 0:00:53]} 34. Kd4 {[%emt 0:00:45]} Ne6+ {[%emt 0:01:09]} 35. Kc4 {[%emt 0:00:21]} Bc6 {[%emt 0:00:00]} 36. Rd1 {[%emt 0:02:43]} h4 {[%emt 0:00:45]} 37. Rf1 {[%emt 0:01:04]} Ng5 {[%emt 0:02:30]} 38. f4 {[%emt 0:01:52]} Ne4 {[%emt 0:00:55]} 39. Kd4 {[%emt 0:01:08]} f5 {[%emt 0:00:40]} 40. Rg1 {[%emt 0:00:00]} Kf6 {[%emt 0:02:42]} 41. g4 {[%emt 0:08:14]} Nd2 $19 {[%emt 0:05:30]} 42. g5+ {[%emt 0:01:30]} Kf7 {[%emt 0:00:30]} 43. Ke3 {[%emt 0:00:30]} Nc4+ {[%emt 0:00:30]} 44. Kd4 {[%emt 0:03:30]} Nxa3 {[%emt 0:00:30]} 45. Ke5 {[%emt 0:00:00]} Nc4+ {[%emt 0:00:30]} 46. Kd4 {[%emt 0:00:00]} Nd2 {[%emt 0:00:00]} 47. Kc3 {[%emt 0:00:30]} Ne4+ {[%emt 0:01:00]} 48. Kb4 {[%emt 0:00:30]} Nf2 {[%emt 0:00:30]} 49. Ra1 {[%emt 0:00:00]} Nd3+ {[%emt 0:03:30]} 50. Kc4 {[%emt 0:01:00]} Nxf4 {[%emt 0:00:00]} 51. Rxa7 {[%emt 0:00:30]} Ne6 {[%emt 0:01:00]} 52. Kb4 {[%emt 0:00:30]} Nxg5 {[%emt 0:00:00]} 0-1

[Event "Turkey IS Bank Super League 2017"]
[Site "Darica-Kocaeli"]
[Date "2017.08.05"]
[Round "12"]
[White "Yurdakul, Didem Nuray"]
[Black "Kose, Ulya"]
[Result "1-0"]
[ECO "C56"]
[WhiteElo "1697"]
[BlackElo "1591"]
[Annotator "NA"]
[PlyCount "75"]
[EventType "team-tourn"]
[EventCountry "TUR"]
[SourceTitle "playchess.com"]
[Source "ChessBase"]
[SourceQuality "1"]
[TimeControl "40/5400+30:1800+30"]

1. e4 {[%emt 0:00:30]} e5 {[%emt 0:02:00]} 2. Nf3 {[%emt 0:00:30]} Nc6 {[%emt 0:00:30]} 3. d4 {[%emt 0:00:30]} exd4 {[%emt 0:00:00]} 4. Bc4 {[%emt 0:00:00]} Nf6 {[%emt 0:00:00]} 5. e5 {[%emt 0:01:00]} d5 {[%emt 0:00:30]} 6. Bb5 {[%emt 0:00:30]} Ne4 {[%emt 0:00:00]} 7. Nxd4 {[%emt 0:00:00]} Bd7 {[%emt 0:01:00]} 8. Bxc6 {[%emt 0:01:00]} bxc6 {[%emt 0:00:00]} 9. O-O {[%emt 0:00:30]} Bc5 {[%emt 0:02:00]} 10. f3 {[%emt 0:00:30]} Ng5 {[%emt 0:00:30]} 11. f4 {[%emt 0:00:30]} Ne4 {[%emt 0:00:00]} 12. Be3 {[%emt 0:00:30]} Bb6 {[%emt 0:00:00]} 13. Nd2 {[%emt 0:07:30]} Nxd2 {[%emt 0:01:30]} 14. Qxd2 {[%emt 0:00:00]} c5 {[%emt 0:00:30]} 15. Nf3 {[%emt 0:02:00]} d4 {[%emt 0:02:30]} 16. Bf2 {[%emt 0:00:30]} Bc6 {[%emt 0:00:30]} 17. Bh4 {[%emt 0:00:30]} Qd7 {[%emt 0:01:30]} 18. b3 {[%emt 0:19:30]} Qg4 {[%emt 0:17:30]} 19. h3 {[%emt 0:02:30]} Qg6 {[%emt 0:06:30]} 20. Rad1 {[%emt 0:11:30]} f6 {[%emt 0:12:30] [%clk 0:51]} 21. a4 {[%emt 0:16:30]} a5 {[%emt 0:02:30]} 22. Rde1 {[%emt 0:09:30]} O-O-O {[%emt 0:10:30]} 23. exf6 {[%emt 0:05:30]} gxf6 {[%emt 0:03:30]} 24. Re6 {[%emt 0:00:33]} Rd6 {[%emt 0:09:30]} 25. Qe2 {[%emt 0:05:52]} d3 {[%emt 0:07:30]} 26. cxd3 {[%emt 0:01:34]} c4+ {[%emt 0:02:08]} 27. d4 {[%emt 0:01:35]} Bxf3 {[%emt 0:01:34]} 28. Rxf3 {[%emt 0:00:19]} Bxd4+ {[%emt 0:04:22]} 29. Kh2 {[%emt 0:00:39]} c3 {[%emt 0:02:38]} 30. Rxd6 {[%emt 0:01:49]} cxd6 {[%emt 0:00:12]} 31. Qc4+ {[%emt 0:00:00]} Bc5 {[%emt 0:01:15]} 32. Rxc3 {[%emt 0:00:10]} Kd8 {[%emt 0:05:17]} 33. Rg3 {[%emt 0:01:16]} Qb1 {[%emt 0:02:34]} 34. Bxf6+ {[%emt 0:01:10]} Kc8 {[%emt 0:00:15]} 35. Bd4 {[%emt 0:04:19]} Kd7 {[%emt 0:02:34]} 36. Rg7+ {[%emt 0:00:38]} Kc6 {[%emt 0:00:30]} 37. Bxc5 {[%emt 0:00:30]} dxc5 {[%emt 0:00:30]} 38. Qe6# {[%emt 0:00:55]} 1-0

[Event "Turkey IS Bank Super League 2017"]
[Site "Darica-Kocaeli"]
[Date "2017.08.05"]
[Round "12"]
[White "Sade, Defne"]
[Black "Arda, Cagil Irmak"]
[Result "1/2-1/2"]
[ECO "B51"]
[WhiteElo "1654"]
[BlackElo "2080"]
[Annotator "NA"]
[PlyCount "140"]
[EventType "team-tourn"]
[EventCountry "TUR"]
[SourceTitle "playchess.com"]
[Source "ChessBase"]
[SourceQuality "1"]
[TimeControl "40/5400+30:1800+30"]

1. e4 {[%emt 0:00:30]} c5 {[%emt 0:02:00]} 2. Nf3 {[%emt 0:00:30]} d6 {[%emt 0:00:00]} 3. Bb5+ {[%emt 0:02:30]} Nd7 {[%emt 0:00:00]} 4. O-O {[%emt 0:00:30]} a6 {[%emt 0:00:30]} 5. Bd3 {[%emt 0:00:00] B51: Sicilian: Moscow Variation (3 Bb5+) without 3...Bd7} Ngf6 {[%emt 0:00:00]} (5... b5 6. Re1 Bb7 7. a4 b4 8. Bc4 Ngf6 9. d3 e6 10. Nbd2 Be7 11. Nf1 O-O 12. Ng3 d5 {1-0 (50) Vachier Lagrave,M (2783)-Nepomniachtchi,I (2766) Leuven 2017}) 6. Re1 {[%emt 0:01:00]} e6 {[%emt 0:00:00]} 7. c3 {[%emt 0:00:00]} Be7 {[%emt 0:00:30]} 8. Bf1 {[%emt 0:00:00]} b6 $146 {[%emt 0:01:30]} ({Find the theoretical novelty and annotate with similar games:} 8... b5 9. d4 Bb7 10. Bd3 O-O 11. Bf4 cxd4 12. cxd4 Rc8 13. a4 b4 {0-1 (66) Muzychuk,A (2452)-Fedorchuk,S (2599) Warsaw 2006}) 9. d4 {[%emt 0:01:30]} Bb7 {[%emt 0:01:30]} 10. Nbd2 {[%emt 0:01:30]} O-O {[%emt 0:02:30]} 11. Bd3 {[%emt 0:02:30]} Qc7 {[%emt 0:06:30]} 12. Qe2 {[%emt 0:17:30]} e5 {[%emt 0:06:30]} 13. d5 {[%emt 0:02:30]} Nh5 {[%emt 0:01:30]} 14. c4 {[%emt 0:13:30]} g6 {[%emt 0:01:30]} 15. Nf1 {[%emt 0:03:30]} Bf6 {[%emt 0:02:30]} 16. g3 {[%emt 0:02:30]} Rae8 {[%emt 0:03:30]} 17. h4 {[%emt 0:02:30]} Bh8 {[%emt 0:36:30]} 18. Bh6 {[%emt 0:00:00]} Bg7 {[%emt 0:01:30] [%clk 0:28]} 19. Qd2 {[%emt 0:00:00]} Ndf6 {[%emt 0:06:30]} 20. N1h2 {[%emt 0:00:00]} Bc8 {[%emt 0:00:30]} 21. Qg5 {[%emt 0:00:00]} Kh8 {[%emt 0:06:07]} 22. Qd2 {[%emt 0:00:00]} ({White should play} 22. Bxg7+ $11 Kxg7 23. b3) 22... Bxh6 {[%emt 0:00:18]} 23. Qxh6 {[%emt 0:00:00]} Ng8 {[%emt 0:01:00]} 24. Qd2 {[%emt 0:00:30]} h6 {[%emt 0:01:58]} 25. Qd1 {[%emt 0:08:30]} Nhf6 {[%emt 0:04:28]} 26. Nd2 {[%emt 0:00:30]} Nh7 {[%emt 0:07:27]} 27. h5 {[%emt 0:01:30]} Qd8 {[%emt 0:02:28]} 28. Be2 {[%emt 0:07:30]} Ng5 {[%emt 0:00:30]} 29. Bf1 {[%emt 0:02:30]} f5 {[%emt 0:00:43]} 30. hxg6 {[%emt 0:01:30]} Qf6 {[%emt 0:04:24]} 31. Nhf3 {[%emt 0:10:30]} Nxe4 {[%emt 0:00:31]} 32. Nh4 {[%emt 0:00:30]} Nxd2 {[%emt 0:00:30]} 33. Qxd2 {[%emt 0:00:30]} Qg5 {[%emt 0:00:00]} 34. Qxg5 {[%emt 0:02:33]} hxg5 {[%emt 0:00:15]} 35. Nf3 {[%emt 0:00:30]} g4 {[%emt 0:00:30]} 36. Nh4 {[%emt 0:00:30]} Kg7 {[%emt 0:00:30]} 37. Rab1 {[%emt 0:04:13]} Bd7 {[%emt 0:00:55]} 38. b4 {[%emt 0:00:30]} Rb8 {[%emt 0:00:30]} 39. Rb2 {[%emt 0:02:32]} cxb4 {[%emt 0:00:30]} 40. Rxb4 {[%emt 0:00:00]} Ne7 {[%emt 0:09:26]} 41. Reb1 {[%emt 0:02:12]} b5 {[%emt 0:00:30]} 42. cxb5 {[%emt 0:03:30]} Nxd5 {[%emt 0:00:30]} 43. R4b3 {[%emt 0:01:30]} axb5 $1 {[%emt 0:01:30]} 44. Bxb5 {[%emt 0:04:30]} Bxb5 {[%emt 0:00:30]} 45. Rxb5 {[%emt 0:00:00]} Rxb5 {[%emt 0:01:30]} 46. Rxb5 $11 {[%emt 0:00:00]} Ne7 {[%emt 0:05:34]} 47. a4 {[%emt 0:13:30]} Kf6 {[%emt 0:01:55]} 48. Rb7 {[%emt 0:10:42]} Ra8 {[%emt 0:00:39]} 49. g7 {[%emt 0:00:57]} Rg8 {[%emt 0:01:10]} 50. a5 {[%emt 0:00:42]} Rxg7 {[%emt 0:09:42]} 51. a6 {[%emt 0:01:11]} Rg8 {[%emt 0:00:05]} 52. a7 {[%emt 0:00:19]} Ra8 {[%emt 0:00:30]} 53. Ng2 {[%emt 0:00:33]} Ke6 {[%emt 0:01:12]} 54. Ne3 {[%emt 0:04:54]} d5 {[%emt 0:01:34]} 55. Rb6+ {[%emt 0:00:30]} Kd7 {[%emt 0:00:27]} 56. Rb7+ {[%emt 0:00:29]} Kd6 {[%emt 0:00:30]} 57. Rb6+ {[%emt 0:00:23]} Kc5 {[%emt 0:02:02]} 58. Re6 {[%emt 0:00:00]} Nc6 {[%emt 0:00:24]} 59. Nxf5 {[%emt 0:01:06]} Rxa7 {[%emt 0:00:36]} 60. Rg6 {[%emt 0:01:46]} Ra1+ {[%emt 0:00:30]} 61. Kg2 {[%emt 0:00:30]} d4 {[%emt 0:00:36]} 62. Rxg4 {[%emt 0:00:20]} d3 {[%emt 0:00:27]} 63. Ne3 {[%emt 0:00:49]} d2 {[%emt 0:00:32]} 64. Rc4+ {[%emt 0:02:33]} Kd6 {[%emt 0:00:19]} 65. Re4 {[%emt 0:01:42]} Re1 {[%emt 0:00:00]} 66. Nc4+ {[%emt 0:00:00]} Kd5 {[%emt 0:00:00]} 67. Nxd2 {[%emt 0:00:00]} Rxe4 {[%emt 0:00:00]} 68. Nxe4 {[%emt 0:00:00]} Kxe4 {[%emt 0:00:28]} 69. f4 {[%emt 0:00:00]} exf4 {[%emt 0:00:30]} 70. gxf4 {[%emt 0:00:15]} Kxf4 {[%emt 0:00:30]} 1/2-1/2